bitfinex-derivatives/quotes_SOLF0:USTF0_20250901
["timestamp","ask_amount","ask_price","bid_price","bid_amount"]
[1756718508071,0.03230542,203.18,203.1,2.12182519]
[1756718509374,0.03230542,203.18,203.09,7.94]
[1756718509375,0.03230542,203.18,203.09,10.06182519]
[1756718510874,0.03230542,203.18,203.1,7.94]
[1756718511269,0.03230542,203.18,203.13,7.94]
[1756718511872,0.03230542,203.18,203.12,10.06182519]
[1756718512174,0.03230542,203.18,203.12,2.12182519]
[1756718512380,0.03230542,203.18,203.13,7.94]
[1756718512581,0.03230542,203.18,203.12,2.12182519]
[1756718512974,0.03230542,203.18,203.13,7.94]
[1756718513280,0.03230542,203.18,203.12,2.12182519]
[1756718513481,0.03230542,203.18,203.13,7.94]
[1756718513678,0.03230542,203.18,203.12,2.12182519]
[1756718513883,0.03230542,203.18,203.13,7.94]
[1756718514183,0.03230542,203.18,203.12,2.12182519]
[1756718514889,0.03230542,203.18,203.13,7.94]
[1756718515090,0.03230542,203.18,203.12,2.12182519]
[1756718515286,0.03230542,203.18,203.13,7.94]
[1756718515794,0.03230542,203.18,203.12,2.12182519]
[1756718516085,0.03230542,203.18,203.13,7.94]
[1756718516289,0.03230542,203.18,203.12,2.12182519]
[1756718516787,0.03230542,203.18,203.16,7.94]
[1756718517493,0.03230542,203.18,203.15,2.12182519]
[1756718517890,0.03230542,203.18,203.16,7.94]
[1756718518291,0.03230542,203.18,203.12,6.23007273]
[1756718518491,0.03230542,203.18,203.13,7.94]
[1756718518692,0.03230542,203.18,203.12,6.23007273]
[1756718519291,0.03230542,203.18,203.16,7.94]
[1756718520694,2.12182519,203.28,203.16,7.94]
[1756718520894,124.40182519,203.28,203.16,7.94]
[1756718521993,122.28,203.28,203.2,0.03424056]
[1756718524202,121.9,203.28,203.2,0.03424056]
[1756718526202,0.36,203.27,203.2,0.03424056]
[1756718526600,2.12182519,203.26,203.2,0.03424056]
[1756718526799,0.36,203.25,203.2,0.03424056]
[1756718527495,0.36,203.24,203.2,0.03424056]
[1756718527695,0.36,203.25,203.2,0.03424056]
[1756718527895,121.9,203.24,203.2,0.03424056]
[1756718528996,122.29,203.24,203.2,0.03424056]
[1756718531997,0.39,203.28,203.2,0.03424056]
[1756718532202,121.88,203.27,203.2,0.03424056]
[1756718532902,0.39,203.26,203.2,0.03424056]
[1756718534100,27.6,203.25,203.2,0.03424056]
[1756718534709,27.99,203.25,203.2,0.03424056]
[1756718535201,27.6,203.25,203.2,0.03424056]
[1756718535503,27.99,203.25,203.2,0.03424056]
[1756718535701,2.51182519,203.29,203.2,0.03424056]
[1756718535900,53.28,203.28,203.2,0.03424056]
[1756718536102,0.39,203.27,203.2,0.03424056]
[1756718539108,53.28,203.28,203.2,0.03424056]
[1756718539410,2.49182519,203.35,203.23,2.12182519]
[1756718539604,77.86,203.32,203.23,2.12182519]
[1756718540199,77.86,203.32,203.25,0.03379225]
[1756718540603,121.86,203.33,203.26,2.12182519]
[1756718541605,121.86,203.33,203.29,2.12182519]
[1756718543107,330.82,203.36,203.29,9.98182519]
[1756718543805,330.82,203.36,203.3,0.03335768]
[1756718544002,330.82,203.36,203.32,2.12182519]
[1756718544317,121.84,203.38,203.32,2.12182519]
[1756718544509,0.37,203.42,203.32,2.12182519]
[1756718544814,0.37,203.42,203.35,2.12182519]
[1756718544815,121.82,203.41,203.35,2.12182519]
[1756718545407,121.82,203.41,203.36,0.03501026]
[1756718546810,122.19,203.41,203.36,0.03501026]
[1756718547813,121.82,203.41,203.36,0.03501026]
[1756718548712,0.37,203.39,203.36,0.03501026]
[1756718548912,0.37,203.4,203.36,0.03501026]
[1756718549114,121.82,203.41,203.36,0.03501026]
[1756718549314,0.37,203.4,203.36,0.03501026]
[1756718550014,0.37,203.39,203.36,0.03501026]
[1756718550215,0.37,203.4,203.36,0.03501026]
[1756718550414,121.82,203.41,203.36,0.03501026]
[1756718550618,0.37,203.39,203.36,0.03501026]
[1756718550811,0.37,203.4,203.36,0.03501026]
[1756718551709,0.37,203.39,203.36,0.03501026]
[1756718551912,0.37,203.4,203.36,0.03501026]
[1756718552416,121.82,203.41,203.36,0.03501026]
[1756718552616,0.37,203.4,203.36,0.03501026]
[1756718553316,121.82,203.41,203.36,0.03501026]
[1756718553613,0.37,203.39,203.36,0.03501026]
[1756718553813,0.37,203.4,203.28,2.12182519]
[1756718554017,0.34,203.38,203.28,2.12182519]
[1756718555117,0.03193931,203.35,203.28,2.12182519]
[1756718556013,0.03193931,203.35,203.28,9.98182519]
[1756718557918,0.03193931,203.35,203.28,2.12182519]
[1756718558118,0.03193931,203.35,203.29,7.86]
[1756718558616,0.03193931,203.35,203.3,2.12182519]
[1756718558812,0.03193931,203.35,203.3,9.89182519]
[1756718559117,0.03193931,203.35,203.31,7.77]
[1756718560218,0.03193931,203.35,203.3,2.12182519]
[1756718560409,0.03193931,203.35,203.33,2.12182519]
[1756718560719,121.82,203.41,203.34,7.77]
[1756718561109,0.03743769,203.36,203.34,7.77]
[1756718564712,0.03743769,203.36,203.3,2.12182519]
[1756718564919,0.03743769,203.36,203.29,9.89182519]
[1756718565116,0.33,203.39,203.29,9.89182519]
[1756718565522,0.03374506,203.35,203.29,9.89182519]
[1756718565722,0.03374506,203.35,203.29,7.77]
[1756718566221,0.03374506,203.35,203.26,9.89182519]
[1756718566416,0.03374506,203.35,203.27,7.77]
[1756718569521,0.03374506,203.35,203.29,2.12182519]
[1756718571521,0.03374506,203.35,203.29,9.89182519]
[1756718580327,0.33,203.34,203.22,4.10824754]
[1756718580628,0.33,203.34,203.23,7.77]
[1756718581024,0.03590647,203.31,203.23,7.77]
[1756718581222,0.03590647,203.31,203.25,2.12182519]
[1756718581729,0.03590647,203.31,203.22,6.23007273]
[1756718581730,0.03590647,203.31,203.29,7.77]
[1756718583323,7.36,203.37,203.29,7.77]
[1756718583324,0.85607803,203.4,203.29,7.77]
[1756718583527,0.33,203.42,203.33,9.89182519]
[1756718583930,8.67597275,203.43,203.33,9.89182519]
[1756718584334,8.67597275,203.43,203.29,4.10824754]
[1756718584335,0.37,203.46,203.36,2.12182519]
[1756718584630,30.12,203.44,203.36,2.15906104]
[1756718585421,30.12,203.44,203.37,7.77]
[1756718587233,330.74,203.48,203.39,2.12182519]
[1756718587423,121.64,203.47,203.4,7.77]
[1756718588128,330.74,203.48,203.42,2.12182519]
[1756718588333,452.38,203.48,203.42,2.12182519]
[1756718588833,452.38,203.48,203.41,0.03436017]
[1756718589029,452.38,203.48,203.42,2.12182519]
[1756718590134,330.74,203.48,203.42,2.12182519]
[1756718591937,330.74,203.48,203.42,9.55182519]
[1756718592334,330.74,203.48,203.42,2.12182519]
[1756718592647,0.37,203.47,203.41,0.03436017]
[1756718593032,330.74,203.48,203.41,0.03436017]
[1756718593538,331.96574121,203.48,203.41,0.03436017]
[1756718596641,121.58,203.47,203.41,0.03436017]
[1756718606646,0.37,203.46,203.41,0.03436017]
[1756718606845,121.58,203.47,203.41,0.03436017]
[1756718607036,0.37,203.45,203.41,0.03436017]
[1756718607242,121.56,203.44,203.41,0.03436017]
[1756718607942,121.93,203.44,203.41,0.03436017]
[1756718608144,123.68182519,203.44,203.41,0.03436017]
[1756718608446,0.37,203.42,203.41,0.03436017]
[1756718609348,0.37,203.42,203.32,2.12182519]
[1756718609546,2.45182519,203.41,203.3,7.43]
[1756718609747,121.54,203.4,203.3,7.43]
[1756718609947,121.54,203.39,203.3,7.43]
[1756718610346,2.97775583,203.44,203.33,7.43]
[1756718610550,22.24,203.43,203.33,7.43]
[1756718610750,0.03411065,203.37,203.35,2.12182519]
[1756718611055,0.03411065,203.37,203.36,7.43]
[1756718611350,19.76,203.41,203.35,9.55182519]
[1756718611549,0.03234095,203.39,203.36,7.43]
[1756718611747,0.03234095,203.39,203.35,2.12182519]
[1756718611949,0.03234095,203.39,203.32,2.12182519]
[1756718611950,0.03234095,203.39,203.33,7.43]
[1756718612147,0.03234095,203.39,203.34,2.12182519]
[1756718612346,0.03234095,203.39,203.34,9.55182519]
[1756718612949,0.03234095,203.39,203.33,2.12182519]
[1756718613149,0.03234095,203.39,203.3,9.55182519]
[1756718615448,0.03234095,203.39,203.33,2.12182519]
[1756718629355,0.03234095,203.39,203.28,4.11939473]
[1756718629356,0.03234095,203.39,203.29,9.43182519]
[1756718629562,0.03234095,203.39,203.3,7.31]
[1756718629761,0.34,203.4,203.3,7.31]
[1756718629955,0.03317026,203.37,203.3,7.31]
[1756718631462,0.34,203.36,203.28,2.12182519]
[1756718633062,0.34,203.36,203.26,2.12182519]
[1756718633262,2.46182519,203.36,203.26,2.12182519]
[1756718633960,0.03670165,203.33,203.26,2.12182519]
[1756718634868,0.03670165,203.33,203.27,7.31]
[1756718636556,0.03670165,203.33,203.25,2.12182519]
[1756718636756,2.12182519,203.32,203.24,7.31]
[1756718636964,2.46182519,203.32,203.2,7.31]
[1756718637768,0.03103601,203.28,203.2,7.31]
[1756718642968,0.03103601,203.28,203.16,2.12182519]
[1756718643170,0.03103601,203.28,203.17,7.31]
[1756718643372,2.46182519,203.29,203.17,7.31]
[1756718643776,0.03598387,203.25,203.17,7.31]
[1756718645773,0.03598387,203.25,203.19,2.12182519]
[1756718646180,20.44,203.29,203.2,7.31]
[1756718646674,0.03334298,203.24,203.19,2.12182519]
[1756718646979,0.03334298,203.24,203.2,7.31]
[1756718647380,0.03334298,203.24,203.13,7.31]
[1756718647575,0.03334298,203.24,203.18,7.31]
[1756718660781,0.03334298,203.24,203.19,2.12182519]
[1756718660983,0.03334298,203.24,203.2,7.81]
[1756718661488,0.03334298,203.24,203.19,2.12182519]
[1756718661789,0.03334298,203.24,203.2,7.81]
[1756718661986,0.03334298,203.24,203.19,2.12182519]
[1756718662383,0.03334298,203.24,203.2,7.81]
[1756718663284,0.03334298,203.24,203.19,2.12182519]
[1756718663486,0.03334298,203.24,203.2,7.81]
[1756718663789,0.03334298,203.24,203.19,2.12182519]
[1756718664192,0.03334298,203.24,203.2,7.81]
[1756718664590,0.03334298,203.24,203.19,2.12182519]
[1756718665188,0.03334298,203.24,203.2,7.81]
[1756718665386,0.03334298,203.24,203.21,7.81]
[1756718665991,0.03334298,203.24,203.2,2.12182519]
[1756718666390,0.03334298,203.24,203.21,7.81]
[1756718666591,0.03334298,203.24,203.2,2.12182519]
[1756718666891,0.03334298,203.24,203.21,7.81]
[1756718667688,0.03334298,203.24,203.2,2.12182519]
[1756718667889,0.03334298,203.24,203.21,7.81]
[1756718668186,0.03334298,203.24,203.2,2.12182519]
[1756718668689,0.03334298,203.24,203.21,7.81]
[1756718668892,0.03334298,203.24,203.2,2.12182519]
[1756718669083,0.03334298,203.24,203.21,7.81]
[1756718670396,0.03334298,203.24,203.2,2.12182519]
[1756718670692,0.03334298,203.24,203.21,7.81]
[1756718670893,0.03334298,203.24,203.21,2.12182519]
[1756718671192,0.03334298,203.24,203.22,7.81]
[1756718671694,0.03334298,203.24,203.16,2.12182519]
[1756718676097,21.86334298,203.24,203.15,7.81]
[1756718677595,0.03334298,203.24,203.15,7.81]
[1756718681103,0.03334298,203.24,203.16,2.12182519]
[1756718681704,0.03334298,203.24,203.17,7.38]
[1756718688600,0.03334298,203.24,203.18,7.38]
[1756718689802,0.03334298,203.24,203.2,7.38]
[1756718690507,0.03334298,203.24,203.19,2.12182519]
[1756718691104,0.03334298,203.24,203.2,7.38]
[1756718691308,0.03334298,203.24,203.19,2.12182519]
[1756718691602,0.03334298,203.24,203.2,7.38]
[1756718691797,0.03334298,203.24,203.19,2.12182519]
[1756718692199,0.03334298,203.24,203.2,7.38]
[1756718692406,0.03334298,203.24,203.19,2.12182519]
[1756718692608,0.03334298,203.24,203.2,7.38]
[1756718692906,0.03334298,203.24,203.19,2.12182519]
[1756718693508,0.03334298,203.24,203.2,7.38]
[1756718693709,0.03334298,203.24,203.17,4.11939473]
[1756718693909,0.03334298,203.24,203.2,7.38]
[1756718694305,0.03334298,203.24,203.19,2.12182519]
[1756718694504,0.03334298,203.24,203.2,7.38]
[1756718694708,0.03334298,203.24,203.17,2.12182519]
[1756718694910,0.03334298,203.24,203.16,7.38]
[1756718700215,0.03334298,203.24,203.14,4.11939473]
[1756718700415,2.12182519,203.23,203.13,11.49939473]
[1756718700616,2.12182519,203.23,203.13,7.38]
[1756718701418,0.03334298,203.24,203.14,7.38]
[1756718702324,0.03334298,203.24,203.14,11.49939473]
[1756718702623,0.03334298,203.24,203.15,7.38]
[1756718703218,0.03334298,203.24,203.17,7.38]
[1756718709721,0.03334298,203.24,203.19,2.12182519]
[1756718709921,0.03334298,203.24,203.2,7.83]
[1756718710323,0.03334298,203.24,203.19,2.12182519]
[1756718710727,0.03334298,203.24,203.2,7.83]
[1756718711022,0.03334298,203.24,203.19,2.12182519]
[1756718711525,0.03334298,203.24,203.2,7.83]
[1756718712517,0.03334298,203.24,203.23,7.83]
[1756718714726,0.03334298,203.24,203.23,9.95182519]
[1756718715221,330.64,203.34,203.23,2.12182519]
[1756718715527,452.06,203.34,203.27,7.83]
[1756718715725,330.64,203.34,203.3,7.83]
[1756718716229,330.64,203.34,203.29,2.12182519]
[1756718716528,330.64,203.34,203.3,7.86778886]
[1756718717128,330.64,203.34,203.31,7.83]
[1756718718330,121.42,203.37,203.32,2.12182519]
[1756718718637,121.42,203.37,203.33,7.83]
[1756718719632,121.42,203.37,203.32,9.95182519]
[1756718720225,121.42,203.37,203.33,7.83]
[1756718723234,121.42,203.37,203.32,2.12182519]
[1756718723426,121.42,203.37,203.32,9.95182519]
[1756718723626,121.8,203.37,203.32,2.12182519]
[1756718724231,121.42,203.37,203.32,2.12182519]
[1756718726235,0.38,203.36,203.3,0.03778886]
[1756718727336,123.54182519,203.37,203.3,0.03778886]
[1756718727337,0.38,203.33,203.3,0.03778886]
[1756718727731,0.38,203.31,203.3,0.03778886]
[1756718728934,2.12182519,203.35,203.3,0.03778886]
[1756718729138,0.38,203.33,203.3,0.03778886]
[1756718729339,0.38,203.34,203.3,0.03778886]
[1756718729533,2.12182519,203.35,203.3,0.03778886]
[1756718729734,0.38,203.33,203.3,0.03778886]
[1756718729931,2.12182519,203.32,203.3,0.03778886]
[1756718730139,0.38,203.31,203.3,0.03778886]
[1756718731244,0.88,203.31,203.3,0.03778886]
[1756718735847,0.5,203.31,203.17,9.95182519]
[1756718736050,2.12182519,203.3,203.17,9.95182519]
[1756718736241,7.58,203.29,203.17,9.95182519]
[1756718736941,7.58,203.29,203.18,7.83]
[1756718737142,0.03497628,203.25,203.18,7.83]
[1756718737943,0.03497628,203.25,203.21,7.83]
[1756718740445,0.03497628,203.25,203.2,2.12182519]
[1756718741048,0.03497628,203.25,203.21,7.37]
[1756718741743,0.03497628,203.25,203.2,2.12182519]
[1756718742046,0.03497628,203.25,203.21,7.37]
[1756718742242,0.03497628,203.25,203.2,2.12182519]
[1756718742845,0.03497628,203.25,203.21,7.37]
[1756718743050,0.03497628,203.25,203.2,2.12182519]
[1756718743251,0.03497628,203.25,203.21,7.37]
[1756718743943,0.03497628,203.25,203.2,2.12182519]
[1756718744141,0.03497628,203.25,203.21,7.37]
[1756718744546,0.03497628,203.25,203.2,2.12182519]
[1756718744746,0.03497628,203.25,203.21,7.37]
[1756718745150,0.03497628,203.25,203.2,2.12182519]
[1756718745446,0.03497628,203.25,203.21,7.37]
[1756718745648,0.03497628,203.25,203.2,7.37]
[1756718746345,0.03497628,203.25,203.18,2.12182519]
[1756718747057,0.03497628,203.25,203.18,7.37]
[1756718747948,0.03497628,203.25,203.13,4.128202]
[1756718747949,0.03497628,203.25,203.14,7.37]
[1756718748156,0.03497628,203.25,203.16,7.37]
[1756718748551,0.34,203.26,203.16,7.37]
[1756718748858,0.03340452,203.23,203.16,7.37]
[1756718760365,0.03340452,203.23,203.19,7.37]
[1756718760568,0.03340452,203.23,203.18,2.12182519]
[1756718760763,16.8,203.27,203.19,7.37]
[1756718761064,0.03209206,203.23,203.19,7.37]
[1756718761962,0.03209206,203.23,203.18,2.12182519]
[1756718762166,0.03209206,203.23,203.19,7.37]
[1756718762369,0.03209206,203.23,203.18,2.12182519]
[1756718762863,0.03209206,203.23,203.19,7.37]
[1756718764163,0.03209206,203.23,203.22,7.37]
[1756718765566,0.03209206,203.23,203.21,2.12182519]
[1756718765766,0.03209206,203.23,203.21,7.37]
[1756718765970,0.03209206,203.23,203.19,7.37]
[1756718767260,0.03209206,203.23,203.18,2.12182519]
[1756718767970,0.03209206,203.23,203.19,7.37]
[1756718768267,0.03209206,203.23,203.21,2.12182519]
[1756718768473,38.78,203.3,203.22,7.53]
[1756718769367,39.15,203.3,203.21,2.12182519]
[1756718769766,39.15,203.3,203.23,0.03255599]
[1756718770671,41.27182519,203.3,203.23,0.03255599]
[1756718776178,2.49182519,203.3,203.23,0.03255599]
[1756718776379,121.22,203.29,203.23,0.03255599]
[1756718784086,118.72,203.29,203.23,0.03255599]
[1756718785478,0.37,203.28,203.23,0.03255599]
[1756718785679,118.72,203.29,203.23,0.03255599]
[1756718785981,0.37,203.28,203.23,0.03255599]
[1756718786586,0.37,203.27,203.23,0.03255599]
[1756718787688,17.38,203.26,203.23,0.03255599]
[1756718792190,17.75,203.26,203.23,0.03255599]
[1756718792790,17.38,203.26,203.23,0.03255599]
[1756718793087,0.37,203.25,203.23,0.03255599]
[1756718793294,0.37,203.24,203.23,0.03255599]
[1756718794090,1.73458911,203.24,203.23,0.03255599]
[1756718795294,1.36458911,203.24,203.23,0.03255599]
[1756718795493,1.36458911,203.27,203.23,0.03255599]
[1756718795689,34.95,203.26,203.23,0.03255599]
[1756718795894,0.37,203.26,203.23,0.03255599]
[1756718796091,0.37,203.34,203.23,0.03255599]
[1756718796290,2.50153029,203.3,203.23,0.03255599]
[1756718796798,121.14,203.29,203.23,0.03255599]
[1756718797096,0.03194069,203.29,203.23,0.03255599]
[1756718797295,121.51,203.28,203.23,0.03255599]
[1756718797496,0.37,203.26,203.23,0.03255599]
[1756718798196,0.38,203.27,203.23,0.03255599]
[1756718798395,2.51153029,203.27,203.23,0.03255599]
[1756718799397,2.13153029,203.27,203.23,0.03255599]
[1756718799596,0.38,203.26,203.23,0.03255599]
[1756718799799,2.13153029,203.27,203.23,0.03255599]
[1756718800102,0.38,203.26,203.23,0.03255599]
[1756718800496,2.13153029,203.27,203.23,0.03255599]
[1756718800696,0.38,203.26,203.23,0.03255599]
[1756718801101,2.13153029,203.27,203.23,0.03255599]
[1756718801401,0.38,203.25,203.23,0.03255599]
[1756718803004,121.14,203.24,203.23,0.03255599]
[1756718806502,121.52,203.24,203.23,0.03255599]
[1756718807307,121.14,203.24,203.23,0.03255599]
[1756718809710,121.52,203.24,203.23,0.03255599]
[1756718818812,0.38,203.24,203.23,0.03255599]
[1756718819020,121.08,203.24,203.23,0.03255599]
[1756718820016,122.44450848,203.24,203.23,0.03255599]
[1756718820216,122.79450848,203.24,203.23,0.03255599]
[1756718822026,122.44450848,203.24,203.23,0.03255599]
[1756718822326,122.42450848,203.24,203.23,0.03255599]
[1756718822825,121.06,203.24,203.23,0.03255599]
[1756718823221,121.41,203.24,203.23,0.03255599]
[1756718825525,1.36450848,203.2,203.13,8.1]
[1756718825925,1.36450848,203.2,203.12,1.36450848]
[1756718826232,1.36450848,203.18,203.12,1.36450848]
[1756718826421,121.06,203.17,203.12,1.36450848]
[1756718826623,121.06,203.17,203.12,9.46450848]
[1756718826828,121.09377668,203.17,203.12,9.46450848]
[1756718827734,121.09377668,203.17,203.12,8.1]
[1756718828028,121.09377668,203.17,203.09,12.228202]
[1756718828433,121.09377668,203.17,203.09,8.1]
[1756718833336,121.07377668,203.17,203.09,8.1]
[1756718834038,121.07377668,203.17,203.09,10.23329575]
[1756718835233,0.03377668,203.17,203.09,10.23329575]
[1756718836337,0.03377668,203.17,203.1,7.61]
[1756718836543,0.03377668,203.17,203.1,9.74329575]
[1756718837044,0.03377668,203.17,203.08,4.128202]
[1756718837246,0.03377668,203.17,203.07,13.87149775]
[1756718837847,0.03377668,203.17,203.07,9.74329575]
[1756718838342,0.03377668,203.17,203.07,7.61]
[1756718838551,0.03377668,203.17,203.07,9.74329575]
[1756718839242,0.36,203.16,203.07,9.74329575]
[1756718840446,0.36,203.16,203.07,7.61]
[1756718840643,0.03377668,203.17,203.05,4.128202]
[1756718840843,2.49329575,203.09,202.99,7.61]
[1756718841046,117.14,203.08,202.99,7.61]
[1756718841244,0.36,203.07,202.99,7.61]
[1756718841450,121.0575161,203.06,202.99,7.61]
[1756718841847,121.0575161,203.06,202.96,9.74329575]
[1756718842248,121.0575161,203.06,202.96,7.61]
[1756718842551,0.36,203.05,202.92,2.13329575]
[1756718842755,0.48,203.04,202.93,9.74329575]
[1756718843252,0.03395141,203.01,202.93,7.61]
[1756718843458,4.68,203.0,202.93,7.61]
[1756718843852,0.03395141,203.01,202.93,7.61]
[1756718844752,0.03395141,203.01,202.91,2.13329575]
[1756718844753,0.03395141,203.01,202.95,7.61]
[1756718845651,0.03395141,203.01,202.9,7.61]
[1756718845852,0.03395141,203.01,202.93,7.61]
[1756718847159,13.75395141,203.01,202.93,7.61]
[1756718847559,0.03395141,203.01,202.93,7.61]
[1756718856664,5.95395141,203.01,202.93,7.61]
[1756718856864,0.03395141,203.01,202.93,7.61]
[1756718857064,5.95395141,203.01,202.93,7.61]
[1756718857457,11.57395141,203.01,202.93,7.61]
[1756718858262,0.03395141,203.01,202.93,7.61]
[1756718858467,5.93395141,203.01,202.93,7.61]
[1756718858670,0.03395141,203.01,202.93,7.61]
[1756718858871,11.55395141,203.01,202.93,7.61]
[1756718860873,0.03395141,203.01,202.93,7.61]
[1756718862071,0.03395141,203.01,202.95,9.32737645]
[1756718862473,12.88737645,203.02,202.95,9.32737645]
[1756718862875,0.03680805,203.0,202.96,7.96]
[1756718866776,0.03680805,203.0,202.94,1.36737645]
[1756718867177,0.03680805,203.0,202.95,7.96]
[1756718867379,0.03680805,203.0,202.94,1.36737645]
[1756718868080,0.03680805,203.0,202.95,7.96]
[1756718868279,0.03680805,203.0,202.94,1.36737645]
[1756718868679,0.03680805,203.0,202.95,7.96]
[1756718868880,0.03680805,203.0,202.94,1.36737645]
[1756718869178,0.03680805,203.0,202.95,7.96]
[1756718869379,0.03680805,203.0,202.94,1.36737645]
[1756718870080,0.03680805,203.0,202.95,7.96]
[1756718870580,0.03680805,203.0,202.94,1.36737645]
[1756718870776,0.03680805,203.0,202.95,7.96]
[1756718870980,0.03680805,203.0,202.94,1.36737645]
[1756718871175,1.4041845,203.0,202.94,1.36737645]
[1756718871479,1.4041845,203.0,202.87,7.96]
[1756718871774,1.4041845,203.0,202.93,7.96]
[1756718871975,1.36737645,202.98,202.9,1.36737645]
[1756718872180,0.0353293,202.96,202.9,9.32737645]
[1756718874471,1.40270575,202.96,202.9,7.96]
[1756718876484,1.40270575,202.96,202.91,12.30576465]
[1756718876782,1.40270575,202.96,202.92,4.34576465]
[1756718876979,1.40270575,202.96,202.93,4.34576465]
[1756718877179,1.40270575,202.96,202.94,4.34576465]
[1756718877385,1.40270575,202.96,202.95,4.34576465]
[1756718877679,0.0353293,202.96,202.95,4.34576465]
[1756718878079,0.0353293,202.96,202.95,12.30576465]
[1756718878478,0.0353293,202.96,202.95,4.34576465]
[1756718883183,121.1353293,202.96,202.95,4.34576465]
[1756718885187,121.1353293,202.96,202.95,4.36399344]
[1756718885686,121.1353293,202.96,202.95,4.36900925]
[1756718891289,121.9553293,202.96,202.95,4.00900925]
[1756718891484,121.9553293,202.96,202.86,7.59]
[1756718891689,121.4553293,202.96,202.86,7.59]
[1756718891889,121.08,202.95,202.86,7.59]
[1756718894796,123.21736172,202.95,202.86,7.59]
[1756718895697,123.21736172,202.95,202.82,4.13317094]
[1756718895698,123.21736172,202.95,202.83,7.59]
[1756718895898,2.13736172,202.92,202.83,7.59]
[1756718896400,0.03562599,202.9,202.83,7.59]
[1756718897002,90.01562599,202.9,202.83,7.59]
[1756718900107,91.38464931,202.9,202.83,8.95902332]
[1756718900613,91.38464931,202.9,202.83,7.59]
[1756718900909,0.03562599,202.9,202.79,1.36902332]
[1756718901204,101.92,202.89,202.79,1.36902332]
[1756718901401,1.36902332,202.86,202.79,1.36902332]
[1756718901603,98.98,202.85,202.81,1.36902332]
[1756718901905,95.44,202.86,202.82,7.59]
[1756718902106,0.03680163,202.85,202.82,7.59]
[1756718902497,0.03680163,202.85,202.76,4.13317094]
[1756718902703,0.03680163,202.85,202.77,9.72939123]
[1756718903004,2.13939123,202.91,202.77,9.72939123]
[1756718903198,0.3,202.9,202.78,7.59]
[1756718903395,0.03501871,202.83,202.81,7.59]
[1756718903902,0.16,202.87,202.81,7.59]
[1756718904103,0.03290412,202.84,202.81,7.59]
[1756718904505,0.03290412,202.84,202.76,9.72939123]
[1756718904807,0.03290412,202.84,202.76,2.13939123]
[1756718905008,0.16,202.87,202.77,7.59]
[1756718905307,0.03373807,202.82,202.76,2.13939123]
[1756718905508,0.03373807,202.82,202.77,7.59]
[1756718905807,0.03373807,202.82,202.76,2.13939123]
[1756718906008,0.03373807,202.82,202.77,7.59]
[1756718906912,0.03373807,202.82,202.76,2.13939123]
[1756718907498,0.03373807,202.82,202.75,7.59]
[1756718907700,0.03373807,202.82,202.77,2.13939123]
[1756718907898,0.03373807,202.82,202.78,7.59]
[1756718908306,0.03373807,202.82,202.77,2.13939123]
[1756718908505,0.03373807,202.82,202.78,7.59]
[1756718908704,0.03373807,202.82,202.77,2.13939123]
[1756718909110,0.03373807,202.82,202.78,7.59]
[1756718909305,0.03373807,202.82,202.77,2.13939123]
[1756718909505,0.03373807,202.82,202.78,2.13939123]
[1756718910105,0.03373807,202.82,202.75,4.13317094]
[1756718910307,0.03373807,202.82,202.78,2.13939123]
[1756718910507,0.03373807,202.82,202.79,7.59]
[1756718911110,0.03373807,202.82,202.78,2.13939123]
[1756718911302,0.03373807,202.82,202.79,7.59]
[1756718911511,0.03373807,202.82,202.78,2.13939123]
[1756718911909,0.03373807,202.82,202.79,7.59]
[1756718912107,0.03373807,202.82,202.78,2.13939123]
[1756718912310,0.03373807,202.82,202.75,4.13317094]
[1756718912509,0.03373807,202.82,202.8,7.59]
[1756718913209,0.03373807,202.82,202.79,2.13939123]
[1756718913515,0.03373807,202.82,202.76,7.59]
[1756718919912,0.03373807,202.82,202.78,7.36]
[1756718920113,0.03373807,202.82,202.77,2.13939123]
[1756718920518,0.03373807,202.82,202.78,7.36]
[1756718921814,0.03373807,202.82,202.77,2.13939123]